bitfinex-derivatives/quotes_SOLF0:USTF0_20251018
["timestamp","ask_amount","ask_price","bid_price","bid_amount"]
[1760794777876,4.07752478,184.83,184.71,0.94176229]
[1760794778080,6.85752478,184.82,184.71,0.94176229]
[1760794778279,2.78,184.8,184.67,45.4]
[1760794778579,2.78,184.78,184.69,0.9418515]
[1760794779186,4.8697,184.77,184.69,5.8134515]
[1760794779378,2.78,184.78,184.69,5.8134515]
[1760794779580,2.78,184.76,184.69,0.9418515]
[1760794779776,2.78,184.76,184.67,4.8721]
[1760794780384,4.8706,184.74,184.66,0.94204272]
[1760794781081,4.8706,184.74,184.66,5.81444272]
[1760794781884,7.65,184.76,184.67,4.8721]
[1760794782082,4.08741175,184.75,184.67,4.8721]
[1760794782386,6.87069574,184.74,184.66,0.94204272]
[1760794782579,2.78,184.74,184.66,0.94204272]
[1760794782774,4.8703,184.75,184.67,4.8723]
[1760794783180,2.78,184.78,184.66,0.94204272]
[1760794783379,4.09525274,184.77,184.66,0.94204272]
[1760794783586,4.09525274,184.76,184.66,0.94204272]
[1760794783783,2.78,184.78,184.66,0.94204272]
[1760794783989,8.96459025,184.77,184.66,0.94204272]
[1760794784282,2.78,184.82,184.66,0.94204272]
[1760794784487,10.02734611,184.87,184.66,0.94204272]
[1760794784488,2.78,184.8,184.67,62.0]
[1760794784786,4.09982807,184.79,184.67,62.0]
[1760794785087,4.09982807,184.78,184.67,62.0]
[1760794785287,2.78,184.8,184.67,62.0]
[1760794785586,4.09991539,184.79,184.67,62.0]
[1760794785789,6.87991539,184.78,184.71,4.871]
[1760794786088,2.78,184.78,184.71,4.871]
[1760794786285,2.68,184.82,184.71,45.44]
[1760794786483,8.9714814,184.81,184.73,4.8705]
[1760794786688,4.1028814,184.8,184.71,45.44]
[1760794786883,4.8686,184.81,184.71,45.44]
[1760794787385,8.97553712,184.8,184.71,50.311]
[1760794787586,4.10620424,184.79,184.71,4.871]
[1760794787807,2.68,184.82,184.72,45.44]
[1760794787987,4.10555989,184.81,184.72,45.44]
[1760794788186,4.10555989,184.8,184.72,45.44]
[1760794788381,2.68,184.82,184.72,45.44]
[1760794788588,4.07069386,184.81,184.72,45.44]
[1760794788886,4.07069386,184.8,184.72,45.44]
[1760794789088,2.68,184.82,184.72,45.44]
[1760794789288,2.68,184.82,184.74,4.8702]
[1760794790687,2.68,184.82,184.72,45.44]
[1760794790992,4.07596856,184.81,184.71,43.8]
[1760794791190,2.68,184.82,184.71,43.8]
[1760794791884,2.68,184.82,184.66,0.94204272]
[1760794791885,4.07631148,184.81,184.66,0.94204272]
[1760794792090,2.68,184.79,184.67,45.44]
[1760794792292,4.8697,184.77,184.7,4.8713]
[1760794792489,2.68,184.79,184.67,45.44]
[1760794792893,4.8684,184.82,184.74,4.8702]
[1760794793095,4.8684,184.82,184.74,50.3302]
[1760794793795,4.8684,184.82,184.75,4.87]
[1760794794198,7.5478,184.84,184.74,45.46]
[1760794795016,7.5478,184.84,184.76,4.8697]
[1760794795191,4.8682,184.83,184.76,4.8697]
[1760794795391,4.8682,184.83,184.74,45.46]
[1760794795792,7.5485,184.82,184.74,50.3303]
[1760794796690,4.8687,184.81,184.74,50.3303]
[1760794798896,2.68,184.82,184.75,4.87]
[1760794799496,4.8682,184.83,184.76,4.8698]
[1760794801103,7.5485,184.82,184.74,50.3303]
[1760794801506,2.68,184.82,184.72,4.8709]
[1760794801705,2.68,184.82,184.73,45.42]
[1760794802300,6.95014573,184.87,184.68,62.0]
[1760794802501,8.34997809,184.86,184.69,45.44]
[1760794802699,4.07983236,184.85,184.69,45.44]
[1760794802896,4.8693,184.79,184.72,4.8708]
[1760794803403,2.68,184.8,184.73,4.8705]
[1760794804098,4.8687,184.81,184.74,4.8703]
[1760794804303,4.8687,184.81,184.69,45.44]
[1760794804901,4.8682,184.83,184.69,45.44]
[1760794805102,2.68,184.88,184.69,45.44]
[1760794805297,4.08065338,184.87,184.69,45.44]
[1760794805507,4.08065338,184.86,184.69,45.44]
[1760794805709,2.68,184.88,184.69,45.44]
[1760794806002,4.08020617,184.87,184.69,45.44]
[1760794806209,4.08020617,184.86,184.69,45.44]
[1760794806417,2.68,184.88,184.69,45.44]
[1760794806608,4.08016513,184.87,184.69,45.44]
[1760794806806,4.08016513,184.86,184.69,45.44]
[1760794807106,4.8676,184.85,184.77,4.8694]
[1760794807307,4.8676,184.85,184.78,45.44]
[1760794807505,2.68,184.88,184.78,45.44]
[1760794807709,4.8679,184.84,184.78,45.44]
[1760794808108,2.68,184.88,184.78,50.3091]
[1760794808403,4.8673,184.86,184.78,45.44]
[1760794808609,2.68,184.88,184.8,4.8687]
[1760794808805,2.68,184.88,184.78,45.44]
[1760794809009,7.5583,184.83,184.78,45.44]
[1760794809203,2.69,184.83,184.78,45.44]
[1760794809403,2.69,184.88,184.78,45.44]
[1760794809607,4.869,184.8,184.78,45.44]
[1760794809810,4.869,184.8,184.66,0.94204272]
[1760794809811,4.94190213,184.89,184.66,0.94204272]
[1760794810007,2.69,184.79,184.66,0.94204272]
[1760794810208,4.8703,184.75,184.67,45.44]
[1760794810411,9.7373,184.81,184.66,0.94204272]
[1760794810607,2.69,184.79,184.66,46.38204272]
[1760794810909,4.871,184.72,184.66,46.38204272]
[1760794811910,4.8704,184.74,184.66,46.38204272]
[1760794812412,2.69,184.79,184.66,46.38204272]
[1760794813411,2.69,184.85,184.66,46.38204272]
[1760794813713,2.69,184.83,184.66,46.38204272]
[1760794815112,4.8689,184.8,184.72,4.8708]
[1760794815314,2.69,184.83,184.73,45.44]
[1760794815505,2.69,184.88,184.73,45.44]
[1760794815716,4.0788181,184.87,184.73,45.44]
[1760794815908,2.69,184.88,184.73,45.44]
[1760794816110,4.07894698,184.87,184.73,45.44]
[1760794816310,2.69,184.88,184.73,45.44]
[1760794817611,4.8663,184.9,184.81,4.8684]
[1760794817811,4.8663,184.9,184.82,45.44]
[1760794818418,7.5757,184.92,184.82,107.44]
[1760794818916,7.5757,184.92,184.82,112.3081]
[1760794819418,4.8662,184.9,184.82,107.44]
[1760794819618,4.8662,184.9,184.82,45.44]
[1760794819805,4.24504173,184.95,184.7,13.35706343]
[1760794820012,7.5778,184.85,184.76,4.8697]
[1760794820616,4.867,184.88,184.71,10.82]
[1760794822613,7.5772,184.87,184.72,62.0]
[1760794822818,7.5772,184.87,184.73,45.44]
[1760794823718,2.71,184.87,184.79,4.8691]
[1760794823911,2.71,184.87,184.8,45.44]
[1760794824520,2.71,184.87,184.81,45.44]
[1760794825038,7.5771,184.87,184.81,45.44]
[1760794826221,4.07326191,184.92,184.81,45.44]
[1760794826524,2.71,184.93,184.81,45.44]
[1760794826920,4.8661,184.91,184.82,4.8681]
[1760794827514,4.8664,184.9,184.81,45.44]
[1760794827713,4.8664,184.9,184.82,45.44]
[1760794827714,2.71,184.9,184.82,45.44]
[1760794827925,2.71,184.93,184.82,45.44]
[1760794828131,2.71,184.91,184.82,45.44]
[1760794828318,4.0728454,184.9,184.82,45.44]
[1760794828625,7.5772,184.87,184.82,45.44]
[1760794828828,2.71,184.86,184.82,45.44]
[1760794829022,2.71,184.85,184.82,45.44]
[1760794830218,85.68814611,184.99,184.82,45.44]
[1760794830219,4.8668,184.88,184.82,45.44]
[1760794831023,4.8672,184.87,184.82,45.44]
[1760794831224,2.71,184.86,184.82,45.44]
[1760794832627,4.8665,184.89,184.82,45.44]
[1760794832924,9.7284,184.98,184.72,62.0]
[1760794832925,4.79147743,184.93,184.72,62.0]
[1760794833124,8.8655674,184.92,184.73,45.4]
[1760794833427,2.71,184.9,184.73,45.4]
[1760794833724,4.94190213,184.94,184.73,45.4]
[1760794833917,2.71,184.92,184.73,45.4]
[1760794834118,2.71,184.87,184.73,45.4]
[1760794834627,2.71,184.87,184.74,45.4]
[1760794834833,4.868,184.84,184.76,4.8698]
[1760794835527,4.868,184.84,184.77,4.8695]
[1760794835918,2.71,184.87,184.74,45.4]
[1760794836717,4.8674,184.86,184.74,45.4]
[1760794837529,2.71,184.87,184.79,4.8689]
[1760794837722,2.71,184.87,184.8,45.38]
[1760794838027,10.02734611,184.99,184.8,45.38]
[1760794838028,2.71,184.91,184.8,45.38]
[1760794838228,2.71,184.95,184.79,45.38]
[1760794838529,8.86659727,184.94,184.79,45.38]
[1760794838827,4.8671,184.87,184.79,45.38]
[1760794839129,2.71,184.89,184.72,62.0]
[1760794839421,13.97602936,184.94,184.76,4.8698]
[1760794839621,2.71,184.92,184.76,4.8698]
[1760794839828,8.86270709,184.91,184.77,45.38]
[1760794840127,4.8679,184.84,184.77,50.2495]
[1760794840722,7.5773,184.86,184.78,4.8692]
[1760794841538,2.71,184.86,184.77,45.38]
[1760794842425,4.8684,184.82,184.77,45.38]
[1760794842626,7.5784,184.82,184.77,45.38]
[1760794842826,2.71,184.83,184.74,4.8704]
[1760794843130,2.71,184.83,184.75,45.4]
[1760794844028,4.869,184.8,184.75,45.4]
[1760794844732,4.869,184.8,184.73,4.8705]
[1760794844932,4.869,184.8,184.74,45.4]
[1760794845234,4.8684,184.82,184.74,50.2703]
[1760794845930,2.71,184.83,184.75,4.87]
[1760794846128,4.8679,184.84,184.74,45.4]
[1760794846931,4.8679,184.84,184.76,4.8696]
[1760794847632,4.8682,184.83,184.76,4.8696]
[1760794848027,4.8682,184.83,184.77,45.38]
[1760794850132,4.8676,184.85,184.77,45.38]
[1760794850832,2.7,184.87,184.79,4.8689]
[1760794851039,2.7,184.87,184.77,45.38]
[1760794851733,4.8679,184.84,184.78,45.36]
[1760794853749,4.8674,184.86,184.78,50.2292]
[1760794853938,7.60866319,184.91,184.78,45.36]
[1760794854243,2.7,184.91,184.78,45.36]
[1760794854441,2.7,184.93,184.78,45.36]
[1760794854643,2.7,184.91,184.78,45.36]
[1760794854842,2.7,184.93,184.78,45.36]
[1760794855045,2.7,184.91,184.78,45.36]
[1760794855440,4.8666,184.89,184.78,45.36]
[1760794855645,2.7,184.91,184.78,45.36]
[1760794856149,4.8672,184.87,184.8,4.8687]
[1760794857051,4.8674,184.86,184.78,45.36]
[1760794857245,2.7,184.88,184.78,45.36]
[1760794857451,2.7,184.93,184.78,45.36]
[1760794857651,8.99180385,184.92,184.78,45.36]
[1760794857853,4.07555469,184.91,184.78,45.36]
[1760794858052,4.8662,184.9,184.83,4.868]
[1760794858248,4.8662,184.9,184.84,45.34]
[1760794861550,4.8658,184.92,184.84,45.34]
[1760794861858,2.7,184.93,184.84,45.34]
[1760794862357,4.07872575,184.92,184.84,45.34]
[1760794862553,2.7,184.93,184.84,45.34]
[1760794862754,4.8658,184.92,184.84,45.34]
[1760794863747,2.7,184.93,184.85,4.8674]
[1760794863951,2.7,184.93,184.84,45.34]
[1760794864657,2.7,184.93,184.85,45.3]
[1760794864955,4.8661,184.91,184.86,45.3]
[1760794865148,2.7,184.93,184.86,45.3]
[1760794865149,7.48838607,184.97,184.86,45.3]
[1760794865350,4.8653,184.94,184.87,4.8669]
[1760794865551,4.94190213,184.98,184.86,45.3]
[1760794865758,15.76182743,184.97,184.86,45.3]
[1760794865952,4.07766735,184.96,184.86,45.3]
[1760794866147,8.94256735,184.95,184.87,4.8668]
[1760794866368,2.63,184.97,184.86,45.3]
[1760794866662,2.63,185.0,184.86,45.3]
[1760794866853,8.86340107,184.99,184.86,45.3]
[1760794867157,4.07730833,184.98,184.87,62.0]
[1760794867358,4.07730833,184.97,184.87,62.0]
[1760794867553,2.63,185.0,184.87,62.0]
[1760794867752,8.8607202,184.99,184.9,4.866]
[1760794867952,2.63,185.0,184.87,62.0]
[1760794868149,4.0766626,184.99,184.87,62.0]
[1760794868461,2.63,185.0,184.87,62.0]
[1760794868656,69.60184853,185.03,184.87,62.0]
[1760794868853,4.0748578,185.02,184.87,62.0]
[1760794869154,7.4929,185.03,184.87,62.0]
[1760794870763,4.8632,185.02,184.93,4.8652]
[1760794870962,4.74391606,185.06,184.94,45.3]
[1760794871257,2.63,185.04,184.94,45.3]
[1760794871460,4.864,184.99,184.94,45.3]
[1760794871662,2.63,184.98,184.94,45.3]
[1760794872653,10.02734611,185.12,184.94,45.3]
[1760794872654,4.8634,185.01,184.94,45.3]
[1760794875362,7.4929,185.03,184.94,50.165]
[1760794875858,4.73621895,185.09,184.92,4.8656]
[1760794876069,2.63,185.07,184.93,45.26]
[1760794876258,12.5546,185.05,184.87,62.0]
[1760794876458,2.83,185.02,184.88,45.3]
[1760794876663,4.8646,184.96,184.88,45.3]
[1760794877556,4.8651,184.95,184.88,45.3]
[1760794878063,4.73229762,185.04,184.89,4.8663]
[1760794878251,9.7246,185.05,184.89,4.8663]
[1760794878252,4.05719697,185.03,184.89,4.8663]
[1760794878453,9.7246,185.05,184.89,4.8663]
[1760794878658,4.8645,184.97,184.88,45.3]
[1760794879563,4.8645,184.97,184.88,112.1666]
[1760794880154,4.8645,184.97,184.89,4.8663]
[1760794881263,4.8648,184.96,184.88,45.3]
[1760794882461,4.04935636,185.02,184.86,93.46149698]
[1760794882668,4.04935636,185.01,184.87,45.28]
[1760794882959,2.83,184.99,184.87,45.28]
[1760794883162,4.94190213,185.04,184.87,45.28]
[1760794883163,4.0479183,185.02,184.87,45.28]
[1760794883365,2.83,185.01,184.87,45.28]
[1760794883665,2.83,185.01,184.91,4.8657]
[1760794883865,2.83,185.01,184.87,45.28]
[1760794883866,2.83,185.01,184.92,45.28]
[1760794884861,2.83,184.98,184.92,45.28]
[1760794885970,4.8645,184.97,184.92,45.28]
[1760794886270,7.6945,184.97,184.92,45.28]
[1760794887565,4.0487142,185.02,184.88,4.8666]
[1760794887767,4.04900509,185.01,184.89,45.26]
[1760794887964,4.04900509,185.04,184.89,45.26]
[1760794888162,2.83,185.02,184.89,45.26]
[1760794888367,4.8645,184.97,184.89,50.1263]
[1760794888573,4.8645,184.97,184.89,45.26]
[1760794889060,4.8645,184.97,184.9,45.26]
[1760794889969,9.7251,185.04,184.87,62.0]
[1760794889970,2.83,184.98,184.87,62.0]
[1760794890170,2.83,184.98,184.88,45.26]
[1760794890572,2.83,184.95,184.88,45.26]
[1760794891170,4.8653,184.94,184.88,45.26]
[1760794892473,4.8653,184.94,184.86,98.32859698]
[1760794892668,4.8653,184.94,184.87,45.26]
[1760794892875,4.8653,184.94,184.86,98.32859698]
[1760794893074,4.8653,184.94,184.87,45.26]
[1760794898373,2.83,184.98,184.87,45.26]
[1760794898579,2.83,184.95,184.87,45.26]
[1760794898879,4.25448055,184.98,184.87,45.26]
[1760794899077,4.8664,184.9,184.87,45.26]
[1760794899385,2.83,184.95,184.87,45.26]
[1760794899875,4.8658,184.92,184.87,45.26]
[1760794902778,4.8653,184.94,184.87,50.1268]
[1760794903783,4.8653,184.94,184.88,4.8666]
[1760794904181,2.83,184.99,184.9,4.8661]
[1760794904380,2.83,184.99,184.91,45.22]
[1760794904581,2.83,184.99,184.92,45.22]
[1760794904781,4.8642,184.98,184.93,42.96]
[1760794905285,2.83,185.01,184.93,42.96]
[1760794905581,2.83,184.97,184.87,4.8669]
[1760794905785,4.06722238,184.96,184.88,45.22]
[1760794905987,2.83,184.97,184.89,45.22]
[1760794906289,2.79,184.95,184.87,45.22]
[1760794907987,4.8658,184.92,184.87,45.22]
[1760794908190,7.6558,184.92,184.87,45.22]
[1760794909982,4.8653,184.94,184.87,45.22]
[1760794910993,4.8656,184.93,184.87,45.22]
[1760794915686,4.865,184.95,184.87,50.0869]
[1760794915995,4.865,184.95,184.87,45.22]
[1760794916197,2.79,184.97,184.87,45.22]
[1760794916997,4.865,184.95,184.87,45.22]
[1760794917996,4.865,184.95,184.87,50.0869]
[1760794918893,4.865,184.95,184.87,45.22]
[1760794919495,7.6545,184.97,184.87,45.22]
[1760794920700,2.79,185.0,184.87,45.22]
[1760794920903,4.07761778,184.99,184.87,45.22]
[1760794921102,6.86761778,184.98,184.87,45.22]
[1760794921405,4.8653,184.94,184.87,45.22]
[1760794921592,4.07770766,184.93,184.87,45.22]
[1760794921797,2.79,184.96,184.87,45.22]
[1760794921997,2.79,184.94,184.87,45.22]
[1760794922202,4.07751488,184.93,184.87,45.22]
[1760794922403,2.79,184.94,184.87,45.22]
[1760794922602,4.07728722,184.93,184.87,45.22]
[1760794922800,2.79,184.94,184.87,45.22]
[1760794922995,4.8659,184.92,184.87,45.22]
[1760794923302,2.79,184.91,184.87,45.22]
[1760794923505,4.8653,184.94,184.87,45.22]
[1760794923695,2.79,184.96,184.87,45.22]
[1760794923896,4.07758739,184.95,184.87,45.22]
[1760794924099,4.8655,184.93,184.84,4.8677]
[1760794924404,4.8655,184.93,184.85,45.2]
[1760794925901,4.8658,184.92,184.85,50.0674]
[1760794927203,4.8661,184.91,184.85,50.0674]
[1760794927399,4.55323705,184.96,184.8,62.0]
[1760794927606,2.7,184.94,184.81,45.18]
[1760794927906,2.7,184.92,184.81,45.18]
[1760794928101,4.0764584,184.91,184.81,45.18]
[1760794928302,2.7,184.92,184.81,45.18]
[1760794928508,2.7,184.89,184.79,95.08510732]
[1760794928804,2.7,184.89,184.8,45.18]
[1760794929499,4.8666,184.89,184.8,45.18]
[1760794930500,4.8666,184.89,184.82,4.8681]
[1760794931600,4.8666,184.89,184.82,66.8681]
[1760794932204,4.8669,184.88,184.8,50.0487]
[1760794934709,4.8669,184.88,184.81,4.8684]
[1760794934908,7.5663,184.9,184.8,45.18]
[1760794935107,7.5663,184.9,184.81,62.0]
[1760794936105,2.7,184.98,184.81,62.0]
[1760794936305,4.0766326,184.97,184.81,62.0]
[1760794936505,4.8648,184.96,184.89,4.8663]
[1760794936704,2.7,184.98,184.9,45.18]
[1760794936907,4.07647205,184.97,184.9,45.18]
[1760794937106,2.7,184.98,184.9,45.18]
[1760794937305,2.7,184.98,184.91,4.8658]
[1760794938804,4.8634,185.01,184.92,4.8654]
[1760794939006,16.16309288,185.12,184.9,45.18]
[1760794939007,7.81362833,185.05,184.9,45.18]
[1760794939313,4.07565358,185.04,184.9,45.18]
[1760794939513,2.82,185.02,184.93,4.8654]
[1760794939909,2.82,185.02,184.94,4.865]
[1760794940209,7.6823,185.05,184.95,62.0]
[1760794940415,4.07311449,185.04,184.96,45.2]
[1760794940714,2.82,185.05,184.96,45.2]
[1760794941015,4.07291881,185.04,184.96,45.2]
[1760794941214,2.82,185.05,184.96,45.2]
[1760794942004,4.8627,185.04,184.96,45.2]
[1760794944609,4.8631,185.02,184.96,45.2]
[1760794945415,2.82,185.03,184.96,45.2]
[1760794947018,7.683,185.03,184.96,45.2]
[1760794948712,4.60810963,185.12,184.96,45.2]
[1760794948713,4.8623,185.05,184.96,45.2]
[1760794948913,2.82,185.07,184.96,45.2]
[1760794949517,7.6818,185.07,184.99,4.8637]
[1760794951613,2.82,185.05,185.0,45.16]
[1760794951925,2.82,185.12,185.0,45.16]
[1760794952219,2.82,185.1,185.0,45.16]
[1760794952421,67.8625634,185.15,185.0,45.16]
[1760794952624,4.04914332,185.14,185.0,45.16]
[1760794952819,4.04914332,185.13,185.0,45.16]
[1760794953018,4.8624,185.05,185.0,45.16]
[1760794953223,2.82,185.09,184.95,4.8648]
[1760794953424,2.82,185.08,184.96,45.14]
[1760794953626,4.8632,185.02,184.96,45.14]
[1760794954922,2.82,185.0,184.96,45.14]
[1760794955125,4.8635,185.01,184.96,45.14]
[1760794955324,7.6835,185.01,184.96,45.14]
[1760794959031,4.8643,184.98,184.9,4.8662]
[1760794959226,4.8643,184.98,184.91,45.14]
[1760794961334,9.723,185.08,184.91,45.14]
[1760794961335,2.82,184.97,184.91,45.14]
[1760794961933,2.82,185.02,184.91,45.14]
[1760794962922,4.8636,185.0,184.91,50.0058]
[1760794963733,4.8636,185.0,184.92,4.8655]
[1760794964227,4.8636,185.0,184.93,62.0]
[1760794965436,4.864,184.99,184.92,4.8655]
[1760794967641,4.8633,185.01,184.93,4.8652]
[1760794968339,4.8633,185.01,184.93,66.8652]
[1760794970537,2.74,185.06,184.93,62.0]
[1760794971640,4.8623,185.05,184.97,4.8641]
[1760794971839,4.8623,185.05,184.98,45.14]
[1760794973141,4.8623,185.05,184.97,4.8641]
[1760794973341,4.8623,185.05,184.98,45.14]
[1760794974543,2.74,185.06,184.98,45.14]
[1760794974843,4.95232552,185.11,184.85,9.7346]
[1760794975146,2.74,185.09,184.86,45.14]
[1760794975443,4.05747852,185.08,184.87,45.14]
[1760794975745,4.05747852,185.07,184.87,45.14]
[1760794975949,2.74,185.06,184.87,45.14]
[1760794976248,2.74,185.06,184.86,9.7342]
[1760794976546,2.74,185.06,184.88,45.14]
[1760794976948,2.74,185.06,184.86,9.7342]
[1760794976949,2.74,185.06,184.89,45.14]
[1760794977851,2.74,185.06,184.9,62.0]
[1760794978051,4.8629,185.03,184.95,4.8647]
[1760794978251,4.8629,185.03,184.96,45.14]
[1760794979551,4.8623,185.05,184.96,45.14]
[1760794980049,4.8623,185.05,184.9,62.0]
[1760794980251,4.8623,185.05,184.91,45.14]
[1760794980551,4.8623,185.05,184.9,62.0]
[1760794980752,4.8623,185.05,184.91,45.14]
[1760794980952,4.8623,185.05,184.97,4.8642]
[1760794981153,4.8619,185.07,184.98,45.14]
[1760794981461,2.74,185.09,185.01,4.8632]
[1760794981648,7.6013,185.09,185.02,40.92]
[1760794981953,7.6013,185.09,184.92,29.57706343]
[1760794982146,7.6013,185.09,184.93,45.14]
[1760794982342,7.6013,185.09,184.92,29.57706343]
[1760794982542,7.6013,185.09,184.93,45.14]
[1760794982747,2.74,185.09,184.92,29.57706343]
[1760794982945,4.8608,185.11,184.94,74.71706343]
[1760794983347,4.8608,185.11,184.95,45.14]
[1760794983849,4.8602,185.13,185.03,4.8625]
[1760794984051,2.74,185.14,185.04,45.14]
[1760794984351,2.74,185.12,185.04,45.14]
[1760794984573,2.74,185.12,185.03,4.8625]
[1760794984756,2.74,185.12,185.04,62.0]
[1760794985055,4.8609,185.11,185.04,30.28]
[1760794985256,4.8609,185.11,185.03,4.8625]
[1760794985751,67.8625634,185.15,185.04,30.28]
[1760794985957,4.07568967,185.14,185.02,30.28]
[1760794986254,4.07568967,185.13,185.01,4.8632]
[1760794986456,4.07568967,185.12,185.01,4.8632]
[1760794986651,2.83,185.13,185.01,4.8632]
[1760794986852,2.83,185.11,185.01,9.4832]
[1760794987854,4.8614,185.09,185.01,9.4832]
[1760794988055,2.83,185.09,184.99,4.8638]
[1760794989057,4.8616,185.08,184.99,4.8638]
[1760794989258,4.8616,185.08,184.99,49.9838]
[1760794989458,4.8616,185.08,184.99,4.8638]
[1760794989655,4.8616,185.08,184.99,49.9838]
[1760794990157,4.8616,185.08,184.99,4.8638]
[1760794990558,4.8616,185.08,185.0,45.12]
[1760794990960,4.8616,185.08,184.99,49.9838]
[1760794991453,4.8616,185.08,184.99,4.8638]
[1760794991654,4.8616,185.08,185.0,45.12]
[1760794992058,4.8616,185.08,184.99,4.8638]
[1760794992560,2.83,185.09,185.0,45.12]
[1760794992756,2.83,185.09,185.01,45.12]
[1760794992963,4.861,185.1,185.02,4.8629]
[1760794993160,2.83,185.12,185.01,45.12]
[1760794993161,7.6905,185.12,185.01,45.12]
[1760794993359,7.6905,185.12,184.94,9.7304]
[1760794993567,2.83,185.12,185.02,4.8628]
[1760794993764,2.83,185.12,185.03,31.42]
[1760794993959,2.83,185.16,185.03,31.42]
[1760794994159,8.79728006,185.15,185.03,31.42]
[1760794994362,4.8611,185.1,185.02,4.8628]
[1760794994562,4.8611,185.1,185.03,33.8]
[1760794994764,4.8611,185.1,185.02,4.8628]
[1760794994976,4.8611,185.1,185.02,49.9828]
[1760794995159,4.8605,185.12,185.03,4.8626]
[1760794995558,4.8605,185.12,185.04,45.12]
[1760794995954,4.8605,185.12,185.04,49.9824]
[1760794996155,4.8605,185.12,185.05,45.12]
[1760794996362,2.83,185.13,185.06,4.8618]
[1760794997064,2.83,185.13,185.06,49.9818]
[1760794997264,2.83,185.13,185.06,4.8618]
[1760794997464,2.83,185.13,185.06,49.9818]
[1760794997662,2.83,185.13,185.06,4.8618]
[1760794997864,2.83,185.13,185.07,45.12]
[1760794998265,4.8598,185.15,185.07,45.12]
[1760794998564,4.8598,185.15,185.07,49.9816]
[1760794998763,4.8598,185.15,185.08,45.12]
[1760795001072,4.8598,185.15,185.09,4.8611]
[1760795001261,4.8591,185.18,185.08,45.12]
[1760795001670,2.74,185.19,185.11,4.8605]
[1760795002066,2.74,185.19,185.12,4.8603]
[1760795004271,7.5979,185.22,185.12,4.8603]
[1760795004469,2.74,185.22,185.14,4.8597]
[1760795004669,2.74,185.22,185.15,45.1]
[1760795006678,7.5971,185.25,185.15,49.9594]
[1760795007180,2.74,185.25,185.15,45.1]
[1760795007780,2.74,185.25,185.17,4.859]
[1760795008377,2.74,185.25,185.15,49.9596]
[1760795008583,2.74,185.3,185.16,45.1]
[1760795008786,2.74,185.28,185.16,45.1]
[1760795009078,2.74,185.31,185.16,45.1]
[1760795009280,2.74,185.29,185.16,49.9592]
[1760795009481,4.95232552,185.33,185.16,49.9592]
[1760795009683,4.06786718,185.32,185.16,49.9592]
[1760795009884,4.06786718,185.31,185.16,49.9592]
[1760795010184,4.06786718,185.3,185.16,49.9592]